[Event "Vienna Chess Open 2019"]
[Site "Vienna"]
[Date "2019.08.24"]
[Round "9.11"]
[White "Pacan-Milej, Kosma"]
[Black "Buckels, Valentin"]
[Result "1/2-1/2"]
[ECO "E32"]
[WhiteElo "2288"]
[BlackElo "2453"]
[Annotator "ChessBase"]
[PlyCount "91"]
[EventDate "2019.08.17"]
[EventType "swiss"]
[EventCountry "AUT"]
[SourceTitle "playchess.com"]
[Source "ChessBase"]
[SourceQuality "1"]
[TimeControl "40/5400+30:1800+30"]

1. d4 {[%emt 0:00:00]} Nf6 {[%emt 0:00:00]} 2. c4 {[%emt 0:00:00]} e6 {[%emt 0:00:00]} 3. Nc3 {[%emt 0:00:00]} Bb4 {[%emt 0:00:00]} 4. Qc2 {[%emt 0:00:00]} O-O {[%emt 0:00:42]} 5. a3 {[%emt 0:00:00]} Bxc3+ {[%emt 0:00:05]} 6. Qxc3 {[%emt 0:00:00]} d6 {[%emt 0:00:07]} 7. Bg5 {[%emt 0:00:00]} Nbd7 {[%emt 0:00:13]} 8. e3 {[%emt 0:00:07]} b6 {[%emt 0:00:10]} 9. Ne2 {[%emt 0:00:15]} c5 {[%emt 0:00:23]} 10. Qc2 {[%emt 0:00:31]} Qc7 {[%emt 0:01:05]} 11. Rd1 {[%emt 0:05:47]} Ba6 {[%emt 0:00:07]} 12. Nc3 {[%emt 0:04:20]} d5 {[%emt 0:00:06]} 13. cxd5 {[%emt 0:08:05]} Bxf1 {[%emt 0:00:28]} 14. Kxf1 {[%emt 0:01:17]} Nxd5 {[%emt 0:00:09]} 15. Nxd5 {[%emt 0:02:59]} exd5 {[%emt 0:00:08]} 16. dxc5 {[%emt 0:03:21]} Qc6 {[%emt 0:00:51]} 17. f3 {[%emt 0:10:22]} bxc5 {[%emt 0:04:24]} 18. Kf2 {[%emt 0:00:10]} Rac8 {[%emt 0:10:39]} 19. Rd2 {[%emt 0:09:36]} Rfe8 {[%emt 0:04:22]} 20. Rhd1 {[%emt 0:00:18]} Nb6 {[%emt 0:00:21]} 21. b3 {[%emt 0:01:15]} h6 {[%emt 0:13:36]} 22. Bf4 {[%emt 0:00:30]} a5 {[%emt 0:05:23]} 23. Bg3 {[%emt 0:09:24]} a4 {[%emt 0:06:21]} 24. bxa4 {[%emt 0:04:27]} Qxa4 {[%emt 0:06:12]} 25. Qxa4 {[%emt 0:08:29]} Nxa4 {[%emt 0:00:25]} 26. Rc2 {[%emt 0:01:45]} Nb6 {[%emt 0:01:15]} 27. a4 {[%emt 0:01:56]} Ra8 {[%emt 0:07:19]} 28. a5 {[%emt 0:05:35]} Rxa5 {[%emt 0:07:28]} 29. Bc7 {[%emt 0:00:05]} Re6 {[%emt 0:00:34]} 30. Rb1 {[%emt 0:07:24]} Ra6 {[%emt 0:01:34]} 31. Bxb6 {[%emt 0:00:08]} Raxb6 {[%emt 0:00:12]} 32. Rxb6 {[%emt 0:00:06]} Rxb6 {[%emt 0:00:03]} 33. Rxc5 {[%emt 0:00:05]} Rb2+ {[%emt 0:00:11]} 34. Kg3 {[%emt 0:01:00]} Rd2 {[%emt 0:00:09]} 35. Rc8+ {[%emt 0:00:12]} Kh7 {[%emt 0:00:02]} 36. Rd8 {[%emt 0:04:40]} Kg6 {[%emt 0:00:24]} 37. Rd6+ {[%emt 0:02:38]} f6 {[%emt 0:04:56]} 38. h4 {[%emt 0:05:01]} h5 {[%emt 0:01:12]} 39. Rd7 {[%emt 0:00:42]} Kh6 {[%emt 0:01:21]} 40. Rd6 {[%emt 0:00:09]} Kh7 {[%emt 0:00:14]} 41. Kh3 {[%emt 0:34:50]} Kg6 {[%emt 0:31:59]} 42. Rd7 {[%emt 0:00:05]} Rd3 {[%emt 0:01:57]} 43. Kg3 {[%emt 0:00:06]} Kh6 {[%emt 0:04:41]} 44. Rd6 {[%emt 0:00:23]} Rxe3 {[%emt 0:00:12]} 45. Rxd5 {[%emt 0:00:06]} Re6 {[%emt 0:00:04]} 46. Rd8 {[%emt 0:01:33]} 1/2-1/2

[Event "Vienna Chess Open 2019"]
[Site "Vienna"]
[Date "2019.08.24"]
[Round "9.12"]
[White "Fedorovsky, Michael"]
[Black "Kummer, Helmut"]
[Result "1/2-1/2"]
[ECO "A49"]
[WhiteElo "2441"]
[BlackElo "2285"]
[Annotator "ChessBase"]
[PlyCount "86"]
[EventDate "2019.08.17"]
[EventType "swiss"]
[EventCountry "AUT"]
[SourceTitle "playchess.com"]
[Source "ChessBase"]
[SourceQuality "1"]
[TimeControl "40/5400+30:1800+30"]

1. d4 {[%emt 0:00:00]} Nf6 {[%emt 0:00:00]} 2. Nf3 {[%emt 0:00:00]} g6 {[%emt 0:00:17]} 3. g3 {[%emt 0:00:16]} c5 {[%emt 0:01:45]} 4. c3 {[%emt 0:04:18]} b6 {[%emt 0:00:45]} 5. Bg2 {[%emt 0:02:01]} Bb7 {[%emt 0:00:05]} 6. Qb3 {[%emt 0:05:21]} e6 {[%emt 0:12:22]} 7. O-O {[%emt 0:00:10]} Na6 {[%emt 0:04:39]} 8. Bf4 {[%emt 0:05:59]} Bg7 {[%emt 0:01:08]} 9. Na3 {[%emt 0:06:38]} O-O {[%emt 0:04:02]} 10. Nb5 {[%emt 0:18:01]} d5 {[%emt 0:03:03]} 11. Rfd1 {[%emt 0:09:19]} Bc6 {[%emt 0:12:36]} 12. Ne5 {[%emt 0:02:38]} Bb7 {[%emt 0:07:44]} 13. Qa3 {[%emt 0:02:51]} Nh5 {[%emt 0:06:50]} 14. Be3 {[%emt 0:01:03]} Nc7 {[%emt 0:02:39]} 15. Nxc7 {[%emt 0:02:24]} Qxc7 {[%emt 0:00:05]} 16. f4 {[%emt 0:02:14]} c4 {[%emt 0:01:26]} 17. Rf1 {[%emt 0:04:11]} f6 {[%emt 0:01:15]} 18. Nf3 {[%emt 0:03:25]} f5 {[%emt 0:00:19]} 19. Qa4 {[%emt 0:01:12]} Bc6 {[%emt 0:02:01]} 20. Qc2 {[%emt 0:00:31]} b5 {[%emt 0:00:05]} 21. Ne5 {[%emt 0:01:08]} a5 {[%emt 0:00:16]} 22. b3 {[%emt 0:01:00]} Rfb8 {[%emt 0:01:08]} 23. bxc4 {[%emt 0:00:49]} bxc4 {[%emt 0:00:08]} 24. Rab1 {[%emt 0:01:03]} Be8 {[%emt 0:00:41]} 25. Rxb8 {[%emt 0:04:42]} Rxb8 {[%emt 0:00:05]} 26. Rb1 {[%emt 0:00:03]} Nf6 {[%emt 0:00:38]} 27. Rb2 {[%emt 0:01:28]} Bf8 {[%emt 0:03:10]} 28. Qb1 {[%emt 0:00:32]} Rxb2 {[%emt 0:00:04]} 29. Qxb2 {[%emt 0:00:02]} a4 {[%emt 0:00:09]} 30. Bd2 {[%emt 0:02:54]} Bd6 {[%emt 0:00:22]} 31. Bf3 {[%emt 0:00:54]} a3 {[%emt 0:00:26]} 32. Qb1 {[%emt 0:01:56]} Qb8 {[%emt 0:00:08]} 33. Qxb8 {[%emt 0:00:17]} Bxb8 {[%emt 0:00:04]} 34. Bc1 {[%emt 0:01:50]} Bd6 {[%emt 0:00:04]} 35. Kf1 {[%emt 0:01:09]} Ba4 {[%emt 0:12:18]} 36. Ke1 {[%emt 0:01:01]} Kf8 {[%emt 0:00:04]} 37. h3 {[%emt 0:03:58]} Ke8 {[%emt 0:04:30]} 38. Kd2 {[%emt 0:01:50]} Bf8 {[%emt 0:01:39]} 39. g4 {[%emt 0:00:59]} Nd7 {[%emt 0:03:34]} 40. Nxd7 {[%emt 0:05:42]} Kxd7 {[%emt 0:00:05]} 41. g5 {[%emt 0:32:31]} Kc6 {[%emt 0:35:39]} 42. e3 {[%emt 0:00:38]} Kb5 {[%emt 0:05:12]} 43. Bd1 {[%emt 0:00:00]} Bxd1 1/2-1/2